Cogmind - Beta 13 @@@ ROGUE MODE // 2024.04.27 @ 17:20:43 Player: Occam Result: Destroyed by S-10 Pest with Light Assault Rifle Performance ------------- Evolutions (0) 0 Regions Visited (2) 400 Robots Destroyed (56) 280 Value Destroyed (892) 892 Prototype IDs (0) 0 Alien Tech Used (0) 0 Bonus (0) 0 TOTAL SCORE: 1572 Bonus ------- None Cogmind --------- Core Integrity 0/250 Matter 280/300 Energy 125/125 System Corruption 4% Temperature Cool (30) Movement Core (1450) Ox28 Location -10/Mines Parts ------- > --- POWER (1) -------- Light Ion Engine > --- PROPULSION (2) --- Light Treads > --- UTILITY (2) ------ Huge Storage Unit Seismic Detector > --- WEAPON (2) ------- Small Laser Light Assault Rifle > --- INVENTORY (25) --- Ion Engine Light Ion Engine Light Treads Compact Wheel Compact Wheel Compact Wheel High-capacity Matter Pod (200) Structural Scanner Experimental Sensor Array Light Armor Plating Hacking Suite Light Assault Rifle Light Assault Rifle Light Assault Rifle Light Assault Rifle Grenade Launcher Datajack Peak State ------------ > --- POWER ------------ Light Ion Engine > --- PROPULSION ------- Light Treads Compact Wheel > --- UTILITY ---------- Huge Storage Unit Seismic Detector > --- WEAPON ----------- Small Laser Assault Rifle > --- INVENTORY -------- Ion Engine Ion Engine Light Ion Engine Light Treads Light Treads Compact Wheel Compact Wheel Compact Wheel High-capacity Matter Pod Structural Scanner Light Armor Plating Hacking Suite Light Assault Rifle Light Assault Rifle Light Assault Rifle Light Assault Rifle Grenade Launcher Datajack [Rating: 9] Favorites ----------- Power Ion Engine Engine Ion Engine Propulsion Light Treads Treads Light Treads Leg Aluminum Leg Wheel Compact Wheel Utility Seismic Detector Device Seismic Detector Storage Small Storage Unit Weapon Small Laser Energy Gun Small Laser Ballistic Gun Assault Rifle Launcher Grenade Launcher Build | -11 -10 -10 ------- Run | Yrd Mat Min Slots Evolved . | . . . Power . | . . . Propulsion . | . . . Utility . | . . . Weapon . | . . . Parts Attached 22 | 1 17 4 Power 8 | . 6 2 Engine 8 | . 6 2 Core . | . . . Reactor . | . . . Propulsion 7 | . 6 1 Treads 6 | . 5 1 Leg . | . . . Wheel 1 | . 1 . Hover . | . . . Flight . | . . . Utility 2 | 1 1 . Device 1 | 1 . . Storage 1 | . 1 . Processor . | . . . Hackware . | . . . Protection . | . . . Artifact . | . . . Weapon 5 | . 4 1 Energy Gun 2 | . 2 . Energy Cannon . | . . . Ballistic Gun 2 | . 1 1 Ballistic Cannon . | . . . Launcher 1 | . 1 . Special Weapon . | . . . Impact Weapon . | . . . Slashing Weapon . | . . . Piercing Weapon . | . . . Special Melee Weapon . | . . . Unidentified Prototypes . | . . . Parts Lost 6 | . 3 3 Power . | . . . Propulsion 3 | . 1 2 Utility . | . . . Weapon 3 | . 2 1 Highest Loss Streak 2 | . 1 2 To Critical Strikes 1 | . . 1 Average Slot Usage (%) 98 | . 98 98 Engine 14 | . 14 14 Treads 21 | . 23 13 Wheel 5 | . 3 13 Device 14 | . 14 14 Storage 14 | . 14 14 Energy Gun 14 | . 14 14 Ballistic Gun 10 | . 10 14 Launcher 2 | . 3 . Naked Turns . | . . . Heaviest Build 89 | 12 89 89 Greatest Support 40 | 20 40 16 Greatest Overweight (x) 5 | . 5 5 Average Overweight (x) 1 | . 1 5 Largest Inventory Capacity 25 | 8 25 25 Average Capacity 14 | 8 11 25 Most Carried 19 | 6 13 19 Average Carried 10 | 6 8 17 Final Capacity 25 | 8 25 25 Final Carried 17 | 6 13 17 Class Distribution -------------------- 62% | Mutant 37% | Scavenger-Mutant Dominant Class ---------------- Mutant | -10/Materials Scavenger-Mutant | -10/Mines Resources | -11 -10 -10 ----------- Run | Yrd Mat Min Matter Collected 1139 | 240 755 144 Remotely . | . . . Salvage Created 1497 | 34 1021 442 Parts 110 | 6 75 29 Haulers Intercepted 2 | . 2 . Recyclers Shooed 4 | . 3 1 Parts Field Recycled . | . . . Retrieved Matter . | . . . Parts Self-Destructed . | . . . Prevented . | . . . Kills | -11 -10 -10 ------- Run | Yrd Mat Min Combat Hostiles Destroyed 37 | . 21 16 Guns 35 | . 19 16 AOE 2 | . 2 . Classes Destroyed 10 | 1 9 . Worker 3 | . 2 1 Builder 2 | . 2 . Tunneler 3 | 2 . 1 Hauler 2 | . 2 . Recycler 3 | . 2 1 Mechanic 1 | . 1 . Operator 2 | . 2 . Watcher 3 | . 3 . Swarmer 22 | . 6 16 Grunt 15 | . 15 . Best Kill Streak 6 | 1 6 4 Combat Bots Only 5 | . 5 3 Max Kills in Single Turn 2 | 1 2 1 Gunslinging . | . . . Exploded 1 | . 1 . Melee . | . . . Uniques/NPCs Destroyed . | . . . Combat | -11 -10 -10 -------- Run | Yrd Mat Min Hostile Shots Fired 201 | . 126 75 Missed 61 | . 36 25 Damage Taken 1385 | . 998 387 Core 255 | . 136 119 Absorbed by Shields . | . . . Core Remaining (%) 100 | 100 . . Volleys Fired 191 | 10 130 51 Largest 2 | 2 2 2 Hottest 80 | 60 80 60 Shots Fired 345 | 20 223 102 Gun 337 | 20 215 102 Cannon . | . . . Launcher 8 | . 8 . Special . | . . . Kinetic 150 | 10 89 51 Thermal 187 | 10 126 51 Explosive 8 | . 8 . Electromagnetic . | . . . Robot Hit Streak 20 | 7 20 16 Robot Miss Streak 7 | 7 5 5 Penetration Max . | . . . Secondary Targets 4 | . 2 2 Max Gunslinging Chain 1 | . 1 1 Shots Hit Robots 215 | 9 148 58 Core Hits 83 | 2 57 24 Critical Kills . | . . . Critical Parts Destroyed . | . . . Critical Strikes . | . . . Melee Attacks . | . . . Impact . | . . . Slashing . | . . . Piercing . | . . . Sneak Attacks . | . . . Combat Hostiles . | . . . Follow-up Attacks . | . . . Damage Inflicted 2924 | 104 2157 663 Guns 2521 | 104 1754 663 Cannons . | . . . Explosions 403 | . 403 . Melee . | . . . Ramming . | . . . Kinetic 1100 | 61 775 264 Thermal 1421 | 43 979 399 Explosive 403 | . 403 . Electromagnetic . | . . . Impact . | . . . Slashing . | . . . Piercing . | . . . Highest Corruption 4 | . 4 4 Average Corruption 3 | . 3 4 Corruption Purged . | . . . Corruption Blocked . | . . . Effects 37 | . 31 6 Message Errors 6 | . 4 2 Matter Fused 7 | . 7 . Heat Flow Errors 6 | . 5 1 Energy Discharges 2 | . 2 . Data Loss (minor) 7 | . 6 1 Data Loss (major) 5 | . 3 2 Misfires 4 | . 4 . Overload Shots . | . . . Overflow Damage . | . . . Projectiles . | . . . Explosions . | . . . Melee . | . . . Knockbacks . | . . . Impact . | . . . Kinetic . | . . . Secondary . | . . . Self-Inflicted Damage . | . . . Shots . | . . . Rammed . | . . . Targets Rammed . | . . . Kicked . | . . . Crushed . | . . . Highest Temperature 280 | 2 280 269 Average Temperature 62 | 2 61 67 Received Heat Transfer 495 | . 495 . Siege Activations . | . . . Robots Corrupted . | . . . Combat Hostiles . | . . . Parts Fried . | . . . Impact Corruptions . | . . . Robots Melted . | . . . Combat Hostiles . | . . . Parts Melted 5 | . 3 2 Heat Transferred 3175 | 100 2175 900 Parts Sabotaged . | . . . Parts Stolen . | . . . Parts Stripped . | . . . Power Chain Reactions . | . . . Alert | -11 -10 -10 ------- Run | Yrd Mat Min Peak Influence 318 | 10 318 281 Initial 46 | . 6 46 Average 178 | 6 183 185 Maximum Alert Level 1 | . 1 1 Low Security (%) 62 | 100 63 53 Level 1 37 | . 36 46 Level 2 . | . . . Level 3 . | . . . Level 4 . | . . . Level 5 . | . . . High Security . | . . . Max Security . | . . . Squads Dispatched 5 | . 5 . Investigation 3 | . 3 . Extermination . | . . . Reinforcement 2 | . 2 . Assault . | . . . Garrison . | . . . Intercept . | . . . Searches Triggered . | . . . Construction Impeded . | . . . Haulers Reinforced . | . . . Active Scanning Responses . | . . . Cargo Convoy Interrupts . | . . . Stealth | -11 -10 -10 --------- Run | Yrd Mat Min Distress Signals 1 | . 1 . Communications Jammed . | . . . Distress Signals . | . . . Times Spotted 56 | . 37 19 Peak Tracking Total 5 | . 5 3 Tactical Retreats 3 | . 2 1 Traps | -11 -10 -10 ------- Run | Yrd Mat Min Traps Triggered 4 | . 4 . Indirectly . | . . . Trap Hack Attempts . | . . . Triggered . | . . . Disarmed . | . . . Reprogrammed . | . . . Reused . | . . . Traps Extracted . | . . . Installed . | . . . Triggered . | . . . Machines | -11 -10 -10 ---------- Run | Yrd Mat Min Machines Disabled . | . . . Max in Single Turn . | . . . Machines Repaired . | . . . Machines Dismantled . | . . . Machines Sabotaged . | . . . Overloaded Fab Kills . | . . . Hacking | -11 -10 -10 --------- Run | Yrd Mat Min Machines Accessed 6 | . 6 . Terminals 6 | . 6 . Fabricators . | . . . Repair Stations . | . . . Recycling Units . | . . . Scanalyzers . | . . . Garrison Access . | . . . Total Hacks 16 | . 16 . Successful 7 | . 7 . Failed 8 | . 8 . Catastrophic . | . . . Database Lockouts 1 | . 1 . Manual 9 | . 9 . Terminals 16 | . 16 . Fabricators . | . . . Repair Stations . | . . . Recycling Units . | . . . Scanalyzers . | . . . Garrison Access . | . . . Terminal Hacks 4 | . 4 . Robot Analysis 1 | . 1 . Terminal Index 1 | . 1 . Alert Level 1 | . 1 . Hauler Manifests 1 | . 1 . Fabricator Hacks . | . . . Repair Station Hacks . | . . . Recycling Unit Hacks . | . . . Scanalyzer . | . . . Garrison Access Hacks . | . . . Unauthorized Hacks 3 | . 3 . Terminals 3 | . 3 . Botnet 2 | . 2 . Operators 1 | . 1 . Fabricators . | . . . Repair Stations . | . . . Recycling Units . | . . . Scanalyzers . | . . . Garrison Access . | . . . Data Cores Recovered . | . . . Used . | . . . Hacking Detections 6 | . 6 . Full Trace Events 3 | . 3 . Feedback Events 1 | . 1 . Corruption 1 | . 1 . Feedback Blocked . | . . . Robot Schematics Acquired . | . . . Robots Built . | . . . Authchips . | . . . Time . | . . . Total Robot Build Rating . | . . . Part Schematics Acquired . | . . . Parts Built . | . . . Authchips . | . . . Time . | . . . Total Part Build Rating . | . . . Parts Repaired . | . . . Time . | . . . Parts Recycled . | . . . Recycled Matter . | . . . Retrieved Matter . | . . . Retrieved Components . | . . . Parts Scanalyzed . | . . . Part Schematics Acquired . | . . . Parts Damaged . | . . . Bothacking | -11 -10 -10 ------------ Run | Yrd Mat Min Used RIF Installer . | . . . Robots Hacked . | . . . Non-combat . | . . . Combat . | . . . Robot Hacks Applied . | . . . Relay Couplers Released . | . . . Fabnet Peak Effective % . | . . . Robots Rewired . | . . . Allies Hacked . | . . . Hacks Repelled . | . . . Allies | -11 -10 -10 -------- Run | Yrd Mat Min Total Allies . | . . . Largest Group . | . . . Highest-Rated Group . | . . . Highest-Rated Ally . | . . . Total Orders . | . . . Ally Attacks . | . . . Total Damage . | . . . Kills . | . . . Allies Corrupted . | . . . Allies Melted . | . . . Intel | -11 -10 -10 ------- Run | Yrd Mat Min Robot Analysis Total 1 | . 1 . Derelict Logs Recovered 1 | . . 1 Drone Launches . | . . . Drone Recoveries . | . . . Exploration | -11 -10 -10 ------------- Run | Yrd Mat Min Turns Passed 2672 | 81 2016 575 Spaces Moved 1255 | 39 982 234 Core . | . . . Treads 709 | . 709 . Legs 69 | 39 30 . Wheels 477 | . 243 234 Hover . | . . . Flight . | . . . Fastest Speed 120 | 120 120 175 Average Speed 163 | 120 162 175 Slowest Speed 175 | 120 175 175 Overloaded Moves . | . . . Propulsion Burnouts . | . . . Robots Hopped . | . . . Cave-ins Triggered . | . . . Exploration Rate (%) 49 | 4 97 46 Regions Visited 2 Branch Regions 1 Pre-discovered Areas . | . . . Known Exits Taken . | . . . Unknown Exits Taken 2 | 1 1 . Scrap Searched . | . . . Spaces Dug . | . . . Terrain Destroyed 35 | . 35 . Melee . | . . . Projectile . | . . . AOE 35 | . 35 . Terrain Rammed . | . . . Walls Destroyed . | . . . Machines Disabled . | . . . Actions | -11 -10 -10 --------- Run | Yrd Mat Min Total 1548 | 52 1195 301 Wait 38 | 3 32 3 Move 1253 | 38 981 234 Hop . | . . . Pick Up 22 | . 16 6 Fast Attach 5 | 1 3 1 Attach 6 | . 4 2 Detach 1 | . . 1 Swap 11 | . 10 1 Drop 21 | . 19 2 Fire 191 | 10 130 51 Melee . | . . . Ram . | . . . Kick . | . . . Crush . | . . . Escape Stasis . | . . . Rewire . | . . . Trap . | . . . Miscellaneous . | . . . Route ------- -11/Scrapyard -10/Materials (discovered 5 exits: [*Mat x3] / [*Min x2]) -10/Mines (discovered 1 exit: [*Mat]) History --------- Turn | Location | Event 7 | -11/Scrapyard | Discovered new exit (range 2) 82 | -11/Scrapyard | Entered Materials 270 | -10/Materials | Discovered new exit (range 10) 307 | -10/Materials | Build established: Mutant 870 | -10/Materials | Discovered new exit (range 8) 1042 | -10/Materials | Discovered new exit (range 16) 1221 | -10/Materials | Build established: Scavenger-Mutant 1243 | -10/Materials | Central database locked down 1255 | -10/Materials | Discovered new exit (range 14) 1538 | -10/Materials | Discovered new exit (range 6) 1564 | -10/Materials | Core integrity fell below 50% 1732 | -10/Materials | Build established: Mutant 2098 | -10/Materials | Entered Mines 2301 | -10/Mines | Found a damaged Exp. Sensor Array with a note attached 2308 | -10/Mines | Found Prototype Device 2346 | -10/Mines | Discovered new exit (range 5) 2414 | -10/Mines | Build established: Scavenger-Mutant 2458 | -10/Mines | Learned Materials stockpile data 2511 | -10/Mines | Core integrity fell below 20% 2673 | -10/Mines | Destroyed by S-10 Pest with Light Assault Rifle Last Messages --------------- 02559_ S-10 Pest destroyed. 02559_ Lgt. Treads destroyed. 02562_ S-10 Pest destroyed. 02572_ DTDCMAU3SAAA1FEA>=DMH7XRHOK 02572_ S-10 Pest destroyed. 02575_ Acquired 18 matter. 02580_ Dropped Lgt. Ion Engine. 02580_ Dropped Ion Engine. 02582_ Acquired 14 matter. 02588_ Acquired Lgt. Assault Rifle. 02607_ System corrupted: Heat flow error (+289). 02641_ Com. Wheel destroyed. 02642_ S-10 Pest destroyed. 02644_ Critical hit (Destroy). 02644_ Assault Rifle destroyed. 02655_ Lgt. Ion Engine melted. 02655_ S-10 Pest destroyed. 02662_ R-06 Scavenger collects Lgt. Assault Rifle. 02667_ System corrupted: Component data lost. 02667_ R-06 Scavenger collects Lgt. Ion Engine. Map ----- +----------------------------------------------------+ | | | | | | | | | | | | | ?????????????????????????????????????????????????? | | ??????????????????????####???????????????????????? | | ????????????????????## ###?????????????????????? | | #??????????????????## ##????????????????????? | | #?#######????????## #????????????????????? | | ## ##??????## #????????????????????? | | ######## #?????????????????????? | | #???????###????????????? | | **= ##??????# ##???????????? | | % ####### ##??????# #???????????? | | *#?????# ##?##### ###?????????? | | #?????# ## ?????????? | | ##????## ??????????? | | ## ##????## #?????????????? | | #* #### #####?### ##?????????????? | | #[% ##??# ##??## #??????????????? | | #=%###???# #???## % #?????????????? | | #%[#?????# #????## ### #????????????? | | #= #????## #?????##%#??? #???????????? | | # #???## ##??????#@#???? #??????????? | | # ###?# ##?######s#????? ????????????? | | #?# ## #???????#??????????????? | | """ #?## #??????????????????????? | | """ #??# ######??????????????????????? | | """ #??# ##???????????????????????????? | | #??# ###????????????????????????????? | | ######??## ##??????????????????????????????? | | ?????????# ##??????????????????????????????? | | ????????## ##?????????????????????????????? | | ????????# ##????????????????????????????? | | ??????### #????????????????????????????? | | ??????# ???????????????????????? | | ??????#%= ### ???????????????????????? | | ?????##%####??# ####### ???????????????????????? | | ?##?## = ##????####??????????????????????????????? | | ? ?# #??????????????????????????????????????? | | ? ## ##?????????????????????????????????????? | | " ## ######????????????????????????????????? | | " ### %% ##???????????????????????????????? | | #?### % #???????????????????????????????? | | " #???## #???????????????????????????????? | | " #????### #???????????????????????????????? | | " #??????## ##???????????????????????????????? | | #???????# ##????????????????????????????????? | +----------------------------------------------------+ Best States ------------- Heat Dissipation 25 Energy Generation 10 Energy Capacity 250 Matter Stores 300 Matter Capacity 300 Sight Range 16 Terrain Scan Density 10 Evasion (%) 55 Recoil Reduction 2 Item Schematics ----------------- None Robot Schematics ------------------ None Fabricated ------------ Nothing Alien Tech Used ----------------- None Achievements -------------- None Challenges ------------ None Game ------ Seed VortexFrostSegregator Manual? 0 Play Time 00:21:06 Cumulative 254.7 hours Start 2024.04.27 @ 17:00:22 End 2024.04.27 @ 17:20:43 Sessions 1 Manual Loads 0 Difficulty Rogue Special Mode None Game No. 163 Rogue 19 Adventurer 144 Explorer 0 Win Type - Total 4 Types 2/0/1/1/0/0/0/0/0 Lore% 63 Gallery% 74 Achievement% 62 Wizard Run 0 Options --------- Layout 0 ASCII 0 Keyboard 0 Movement Mouse Keybinds 0 Fullscreen 2 Font 20/SmallcapsGlow Map View 66x50 Zoom Use 0% Tactical HUD 1 Map Filters NONE Filters NONE Steam X RUN: fc0280ef-bbb6-4c5e-b6d2-c0f79ed9f482